bitfinex/quotes_BTCUSD_20240815
["timestamp","ask_amount","ask_price","bid_price","bid_amount"]
[1723692912148,0.000823,58546.0,58545.0,1.47634328]
[1723692917518,0.00077432,58546.0,58545.0,1.47634328]
[1723692918362,0.00072564,58546.0,58545.0,1.47634328]
[1723692918738,0.00072564,58546.0,58545.0,1.71547528]
[1723692918959,1.28693,58559.0,58556.0,0.239087]
[1723692919135,1.28693,58559.0,58556.0,0.69549324]
[1723692919306,1.28693,58559.0,58556.0,0.93458024]
[1723692920591,1.28693,58559.0,58556.0,0.94358024]
[1723692920830,1.28693,58559.0,58556.0,0.95158024]
[1723692922196,1.28693,58559.0,58556.0,1.19066724]
[1723692922980,0.00843,58559.0,58556.0,1.19066724]
[1723692923321,0.00843,58559.0,58556.0,1.20103548]
[1723692927372,0.0019673,58557.0,58556.0,1.20103548]
[1723692931494,0.0019673,58557.0,58556.0,0.89824848]
[1723692931709,0.0019673,58557.0,58556.0,0.21246324]
[1723692932029,0.0019673,58557.0,58556.0,0.81018024]
[1723692934240,0.0019673,58557.0,58556.0,0.57109324]
[1723692934661,0.0019673,58557.0,58556.0,1.04926724]
[1723692934889,0.0019673,58557.0,58556.0,1.19246724]
[1723692936567,0.0019673,58557.0,58556.0,1.29246724]
[1723692941487,0.0019673,58557.0,58556.0,1.38616724]
[1723692945516,0.0019673,58557.0,58556.0,1.39459724]
[1723692946356,0.0019673,58557.0,58556.0,1.06181024]
[1723692946573,0.0019673,58557.0,58556.0,1.09111024]
[1723692946783,0.0019673,58557.0,58556.0,1.01231024]
[1723692947213,0.0019673,58557.0,58556.0,1.00388024]
[1723692950567,0.0019673,58557.0,58556.0,0.67109324]
[1723692950835,0.0019673,58557.0,58556.0,0.76479324]
[1723692956678,0.0019673,58557.0,58556.0,0.52570624]
[1723692957053,0.0019673,58557.0,58556.0,0.76479324]
[1723692958841,0.0019673,58557.0,58556.0,1.00388024]
[1723692959041,0.0019673,58557.0,58556.0,1.08558024]
[1723692959469,0.0019673,58557.0,58556.0,1.38496724]
[1723692962371,0.0019673,58557.0,58556.0,1.23096724]
[1723692962567,0.0019673,58557.0,58556.0,1.32466724]
[1723692964764,0.0019673,58557.0,58556.0,1.08558024]
[1723692966731,0.0019673,58557.0,58556.0,1.14958024]
[1723692967328,0.0019673,58557.0,58556.0,1.38866724]
[1723692969704,0.0019673,58557.0,58556.0,1.08558024]
[1723692970732,0.0019673,58557.0,58556.0,1.15008024]
[1723692971327,0.0019673,58557.0,58556.0,1.38916724]
[1723692971526,0.0019673,58557.0,58556.0,1.15008024]
[1723692971887,0.0019673,58557.0,58556.0,1.08558024]
[1723692973956,0.1869083,58557.0,58556.0,0.18855454]
[1723692974294,0.1869083,58557.0,58556.0,0.28225454]
[1723692974295,0.4259913,58557.0,58556.0,0.28225454]
[1723692974449,0.47721576,58557.0,58556.0,0.28225454]
[1723692974879,0.23813276,58557.0,58556.0,0.28225454]
[1723692975084,0.29423276,58557.0,58556.0,0.28225454]
[1723692975287,0.77239876,58557.0,58556.0,0.017]
[1723692975691,0.7211743,58557.0,58556.0,0.1107]
[1723692976088,0.4820913,58557.0,58556.0,0.1107]
[1723692976306,0.53330681,58557.0,58556.0,0.1107]
[1723692976491,1.39708281,58557.0,58556.0,0.28225454]
[1723692976689,1.39708281,58557.0,58556.0,0.46144299]
[1723692976952,1.3458673,58557.0,58556.0,0.46144299]
[1723692977293,1.3458673,58557.0,58556.0,0.34189999]
[1723692977647,1.40176173,58557.0,58556.0,0.34189999]
[1723692977974,1.52130273,58557.0,58556.0,0.17034545]
[1723692978206,1.52130273,58557.0,58556.0,0.1107]
[1723692978551,1.34566173,58557.0,58556.0,0.28225454]
[1723692978718,1.28026173,58557.0,58556.0,0.40179754]
[1723692979735,1.28026173,58557.0,58556.0,0.95507154]
[1723692982468,0.00176173,58557.0,58556.0,0.95507154]
[1723692982670,0.00176173,58557.0,58556.0,1.08094879]
[1723692983134,0.00176173,58557.0,58556.0,1.14124879]
[1723692986431,0.00176173,58557.0,58556.0,1.04754879]
[1723692986633,0.00176173,58557.0,58556.0,1.14124879]
[1723692987041,0.00176173,58557.0,58556.0,1.14215409]
[1723692997014,0.00176173,58557.0,58556.0,0.67396709]
[1723692997223,0.00176173,58557.0,58556.0,0.76766709]
[1723692997388,0.00176173,58557.0,58556.0,0.31533709]
[1723692997711,0.00176173,58557.0,58556.0,0.28315984]
[1723692998494,0.17740273,58557.0,58556.0,0.1116053]
[1723692998673,0.48068573,58557.0,58556.0,0.1116053]
[1723692999085,0.55752963,58557.0,58556.0,0.1116053]
[1723692999473,0.71976873,58557.0,58556.0,0.12276583]
[1723692999757,0.79661263,58557.0,58556.0,0.12276583]
[1723693000194,0.71976873,58557.0,58556.0,0.12276583]
[1723693000402,2.07505871,58557.0,58556.0,0.12276583]
[1723693000570,1.99826873,58557.0,58556.0,0.12276583]
[1723693000987,1.75918573,58557.0,58556.0,0.12276583]
[1723693001189,1.81037691,58557.0,58556.0,0.12276583]
[1723693001406,1.81037691,58557.0,58556.0,0.11376583]
[1723693001759,1.81037691,58557.0,58556.0,0.11876583]
[1723693002521,1.81037691,58557.0,58556.0,0.11376583]
[1723693002724,1.75918573,58557.0,58556.0,0.11376583]
[1723693002946,1.34446173,58557.0,58556.0,0.11676583]
[1723693003156,1.34446173,58557.0,58556.0,0.28032037]
[1723693003558,1.34446173,58557.0,58556.0,0.28432037]
[1723693003967,1.34446173,58557.0,58556.0,0.28032037]
[1723693004376,1.28026173,58557.0,58556.0,0.28232037]
[1723693004581,1.28026173,58557.0,58556.0,0.40186337]
[1723693005861,1.39966173,58557.0,58556.0,0.28232037]
[1723693006072,1.39966173,58557.0,58556.0,0.11076583]
[1723693006073,1.51920273,58557.0,58556.0,0.11076583]
[1723693006926,1.75828573,58557.0,58556.0,0.11076583]
[1723693007793,1.75828573,58557.0,58556.0,0.01706583]
[1723693008000,1.75828573,58557.0,58556.0,0.0059053]
[1723693011215,1.99736873,58557.0,58556.0,0.0059053]
[1723693012607,2.33877546,58557.0,58556.0,0.0059053]
[1723693012791,3.16965449,58557.0,58556.0,0.0059053]
[1723693013101,2.6426576,58557.0,58556.0,0.0059053]
[1723693013730,2.6426576,58557.0,58556.0,0.0009053]
[1723693013950,2.4055746,58557.0,58556.0,0.0009053]
[1723693014194,2.40900951,58557.0,58556.0,0.0009053]
[1723693014600,2.41200951,58557.0,58556.0,0.0019053]
[1723693014806,2.41200951,58557.0,58556.0,0.0009053]
[1723693014922,2.56548758,58557.0,58556.0,0.0019053]
[1723693015123,2.56848758,58557.0,58556.0,0.0029053]
[1723693015327,2.41500951,58557.0,58556.0,0.0029053]
[1723693015540,2.56848758,58557.0,58556.0,0.0029053]
[1723693015738,2.41500951,58557.0,58556.0,0.0029053]
[1723693016837,3.05427651,58557.0,58556.0,0.0029053]
[1723693017044,3.15297372,58557.0,58556.0,0.0029053]
[1723693017897,3.05427651,58557.0,58556.0,0.0029053]
[1723693018095,3.15343703,58557.0,58556.0,0.0029053]
[1723693018311,0.5978,58548.0,58547.0,0.0009053]
[1723693018509,0.7179,58548.0,58547.0,0.0009053]
[1723693019589,0.6618,58548.0,58547.0,0.0009053]
[1723693019796,0.6618,58548.0,58547.0,0.0946053]
[1723693020014,0.6618,58548.0,58547.0,0.0009053]
[1723693020223,2.33342634,58548.0,58547.0,0.0039053]
[1723693021430,2.24306308,58548.0,58547.0,0.0039053]
[1723693021693,2.57886789,58548.0,58547.0,0.0039053]
[1723693021881,2.46750892,58548.0,58547.0,0.0039053]
[1723693022534,2.44190819,58548.0,58547.0,0.0039053]
[1723693022748,2.31968283,58548.0,58547.0,0.0039053]
[1723693022955,3.20123737,58548.0,58547.0,0.0019053]
[1723693023162,2.95306308,58548.0,58547.0,0.0019053]
[1723693023368,3.00413821,58548.0,58547.0,0.0019053]
[1723693023594,3.00413821,58548.0,58547.0,0.0009053]
[1723693023996,3.00813821,58548.0,58547.0,0.0029053]
[1723693024211,0.836948,58546.0,58536.0,0.1758053]
[1723693024409,1.88389022,58546.0,58536.0,0.1758053]
[1723693024628,1.83282527,58546.0,58536.0,0.1758053]
[1723693027020,1.83282527,58546.0,58545.0,0.0019053]
[1723693027224,2.18041782,58546.0,58545.0,0.0019053]
[1723693027456,2.18041782,58546.0,58545.0,0.0009053]
[1723693027778,2.18041782,58546.0,58545.0,0.0019053]
[1723693027779,2.12937506,58546.0,58545.0,0.0019053]
[1723693028199,2.13537506,58546.0,58545.0,0.0029053]
[1723693028421,2.12937506,58546.0,58545.0,0.0019053]
[1723693028628,2.07195327,58546.0,58545.0,0.0019053]
[1723693028835,2.08092928,58546.0,58545.0,0.0029053]
[1723693030221,1.2697841,58543.0,58536.0,0.0946053]
[1723693030429,0.358746,58537.0,58536.0,0.0946053]
[1723693030634,0.59791,58537.0,58536.0,0.0946053]
[1723693030847,0.59791,58537.0,58536.0,0.1768053]
[1723693031457,0.59791,58537.0,58536.0,0.1778053]
[1723693031676,0.59791,58537.0,58536.0,0.1768053]
[1723693031883,0.59791,58537.0,58536.0,0.20113583]
[1723693032092,0.359746,58537.0,58536.0,0.20113583]
[1723693032475,0.59891,58537.0,58536.0,0.26293583]
[1723693032611,0.59891,58537.0,58536.0,0.20113583]
[1723693033251,0.59891,58537.0,58536.0,0.1768053]
[1723693033668,0.59891,58537.0,58536.0,0.0831053]
[1723693033878,0.59891,58537.0,58536.0,0.0009053]
[1723693035713,0.59891,58537.0,58523.0,0.2401253]
[1723693035714,1.2688788,58535.0,58528.0,0.0833]
[1723693036032,1.2688788,58535.0,58526.0,0.0618]
[1723693036033,0.358821,58525.0,58524.0,0.0615]
[1723693036234,1.6276998,58525.0,58524.0,0.0615]
[1723693036459,1.3884858,58525.0,58524.0,0.1401]
[1723693037051,1.6276998,58525.0,58524.0,0.1401]
[1723693038195,1.6286998,58525.0,58524.0,0.1631]
[1723693038832,1.6286998,58525.0,58524.0,0.18896106]
[1723693040294,1.8679138,58525.0,58524.0,0.18896106]
[1723693040564,1.6286998,58525.0,58524.0,0.2568]
[1723693041067,1.6286998,58525.0,58524.0,0.1953]
[1723693041449,1.6276998,58525.0,58524.0,0.1843]
[1723693042084,1.6286998,58525.0,58524.0,0.1783]
[1723693042284,1.6276998,58525.0,58524.0,0.1723]
[1723693042691,1.6276998,58525.0,58524.0,0.1753]
[1723693043475,1.6276998,58525.0,58524.0,0.1823]
[1723693043843,1.6276998,58525.0,58524.0,0.1753]
[1723693044039,1.2688788,58525.0,58524.0,0.19616106]
[1723693044345,1.2688788,58525.0,58524.0,0.25766636]
[1723693044346,1.3884858,58525.0,58524.0,0.25766636]
[1723693044524,1.3904858,58525.0,58524.0,0.25766636]
[1723693045100,1.3924858,58525.0,58524.0,0.25766636]
[1723693047739,1.2728788,58525.0,58524.0,0.25766636]
[1723693047937,1.2728788,58525.0,58524.0,0.5488299]
[1723693048158,1.2728788,58525.0,58524.0,0.7880479]
[1723693049826,1.2728788,58525.0,58524.0,0.6943479]
[1723693049955,1.2728788,58525.0,58524.0,0.7880479]
[1723693052018,1.2728788,58525.0,58524.0,1.0272659]
[1723693052737,1.2728788,58525.0,58524.0,0.7880479]
[1723693053965,1.2728788,58525.0,58524.0,1.0272659]
[1723693054337,1.2728788,58525.0,58524.0,0.7880479]
[1723693055591,1.2728788,58525.0,58524.0,1.0272659]
[1723693057609,1.2728788,58525.0,58524.0,0.7880479]
[1723693059750,0.004,58525.0,58524.0,1.2664839]
[1723693060892,0.001,58525.0,58524.0,1.2664839]
[1723693061312,0.002,58525.0,58524.0,1.2784839]
[1723693061678,0.001,58525.0,58524.0,1.2664839]
[1723693061880,0.002,58525.0,58524.0,1.2784839]
[1723693062089,0.001,58525.0,58524.0,1.2784839]
[1723693062517,0.001,58525.0,58524.0,1.2904839]
[1723693065029,0.001,58525.0,58524.0,0.7183479]
[1723693065188,0.001,58525.0,58524.0,0.8120479]
[1723693065959,1.2698788,58525.0,58524.0,0.8120479]
[1723693067241,1.2698788,58525.0,58524.0,0.3926209]
[1723693068888,1.2698788,58525.0,58524.0,0.5122299]
[1723693069091,1.2698788,58525.0,58524.0,0.3926209]
[1723693069292,1.3363788,58525.0,58524.0,0.19645984]
[1723693069504,1.3363788,58525.0,58524.0,0.29015984]
[1723693069729,1.2698788,58525.0,58524.0,0.29015984]
[1723693075890,1.3894858,58525.0,58524.0,0.1186053]
[1723693076265,1.6286998,58525.0,58524.0,0.1186053]
[1723693076478,1.3894858,58525.0,58524.0,0.1186053]
[1723693076642,1.3894858,58525.0,58524.0,0.15085859]
[1723693076839,1.3884858,58525.0,58524.0,0.12685859]
[1723693077289,1.3894858,58525.0,58524.0,0.14485859]
[1723693079359,1.6286998,58525.0,58524.0,0.14485859]
[1723693079979,1.3894858,58525.0,58524.0,0.14485859]
[1723693081237,1.2698788,58525.0,58524.0,0.14485859]
[1723693081436,1.2698788,58525.0,58524.0,0.22195859]
[1723693081853,1.3894858,58525.0,58524.0,0.22195859]
[1723693082068,1.2698788,58525.0,58524.0,0.81474013]
[1723693082261,1.2698788,58525.0,58524.0,1.05395813]
[1723693084631,1.2698788,58525.0,58524.0,1.06413556]
[1723693086325,1.2698788,58525.0,58524.0,1.30335356]
[1723693086492,1.32095834,58536.0,58535.0,0.504759]
[1723693086690,1.2697018,58536.0,58535.0,0.72678944]
[1723693086890,1.2697018,58536.0,58535.0,0.48761644]
[1723693087122,1.2697018,58536.0,58535.0,0.42411644]
[1723693087790,1.2757018,58536.0,58535.0,0.42411644]
[1723693089764,0.006823,58536.0,58535.0,0.66328944]
[1723693092751,0.000823,58536.0,58535.0,0.66328944]
[1723693092964,0.000823,58536.0,58535.0,0.66728944]
[1723693093364,0.000823,58536.0,58535.0,0.67228944]
[1723693093640,0.000823,58536.0,58535.0,0.66828944]
[1723693094052,0.000823,58536.0,58535.0,0.67428944]
[1723693094272,0.000823,58536.0,58535.0,0.43511644]
[1723693095731,0.74088536,58536.0,58535.0,0.20177951]
[1723693096315,0.74088536,58536.0,58535.0,0.20677951]
[1723693096506,0.74088536,58536.0,58535.0,0.32636551]
[1723693096922,0.74088536,58536.0,58535.0,0.20177951]
[1723693097122,0.74088536,58536.0,58535.0,0.0937]
[1723693097295,0.74088536,58536.0,58535.0,0.0987]
[1723693098831,0.7438615,58536.0,58535.0,0.0987]
[1723693099842,0.7438615,58536.0,58535.0,0.218286]
[1723693100379,0.7438615,58536.0,58535.0,0.0987]
[1723693100578,0.7438615,58536.0,58535.0,0.15202986]
[1723693100779,0.7438615,58536.0,58535.0,0.14802986]
[1723693101240,0.7438615,58536.0,58535.0,0.15202986]
[1723693101436,0.7438615,58536.0,58535.0,0.27161586]
[1723693101553,0.00379914,58536.0,58535.0,0.27161586]
[1723693102804,0.00379914,58536.0,58535.0,0.15202986]
[1723693103717,0.00379914,58536.0,58535.0,0.27161586]
[1723693104382,0.00379914,58536.0,58535.0,0.41591586]
[1723693105069,0.00379914,58536.0,58535.0,0.65508886]
[1723693106376,0.00379914,58536.0,58535.0,0.8266434]
[1723693106527,0.00379914,58536.0,58535.0,1.0658164]
[1723693108234,0.00359353,58536.0,58535.0,1.0658164]
[1723693114718,0.00359353,58536.0,58535.0,1.3049894]
[1723693114924,0.00061739,58536.0,58535.0,1.4049894]
[1723693115140,0.00061739,58536.0,58535.0,1.58228478]
[1723693115353,0.00061739,58536.0,58535.0,1.4049894]
[1723693116172,0.00061739,58536.0,58535.0,1.3999894]
[1723693116607,0.00061739,58536.0,58535.0,1.4049894]
[1723693117015,0.00061739,58536.0,58535.0,1.4009894]
[1723693117215,0.00061739,58536.0,58535.0,1.4059894]
[1723693122050,0.00061739,58536.0,58535.0,1.6451624]
[1723693122385,0.00061739,58536.0,58535.0,1.4059894]
[1723693124424,0.00061739,58536.0,58535.0,1.4009894]
[1723693124798,0.00161739,58536.0,58535.0,1.4149894]
[1723693125003,0.00061739,58536.0,58535.0,1.3959894]
[1723693125369,0.00061739,58536.0,58535.0,1.4099894]
[1723693125782,0.00061739,58536.0,58535.0,1.3959894]
[1723693125999,0.00061739,58536.0,58535.0,1.00748654]
[1723693126219,0.00061739,58536.0,58535.0,0.78348654]
[1723693126434,0.00061739,58536.0,58535.0,0.89118654]
[1723693126633,0.00061739,58536.0,58535.0,0.87809184]
[1723693126928,0.00061739,58536.0,58535.0,0.86409184]
[1723693127114,0.00061739,58536.0,58535.0,1.01781152]
[1723693127908,0.00061739,58536.0,58535.0,1.00381152]
[1723693128547,0.00061739,58536.0,58535.0,1.01781152]
[1723693128897,0.00061739,58536.0,58535.0,1.00381152]
[1723693129307,0.00061739,58536.0,58535.0,1.01781152]
[1723693129703,0.00061739,58536.0,58535.0,1.00381152]
[1723693130152,0.00061739,58536.0,58535.0,1.01781152]
[1723693130492,0.00061739,58536.0,58535.0,1.00381152]
[1723693130621,0.00061739,58536.0,58535.0,1.01781152]
[1723693132272,0.00061739,58536.0,58535.0,1.16131152]
[1723693134162,0.00061739,58536.0,58535.0,1.40048452]
[1723693138718,0.00061739,58536.0,58535.0,1.63965752]
[1723693153039,0.00061739,58536.0,58535.0,1.30678452]
[1723693153249,0.00061739,58536.0,58535.0,1.40048452]
[1723693154231,0.00061739,58536.0,58535.0,1.24468452]
[1723693154586,0.00061739,58536.0,58535.0,1.33838452]
[1723693168187,0.00061739,58536.0,58535.0,1.51568365]
[1723693170744,0.00061739,58536.0,58535.0,1.33838452]
[1723693172056,0.00061739,58536.0,58535.0,1.25698452]
[1723693172420,0.00061739,58536.0,58535.0,1.01781152]
[1723693172571,0.26550139,58536.0,58535.0,0.0289053]
[1723693172775,0.26550139,58536.0,58535.0,0.1226053]
[1723693172963,0.14591739,58536.0,58535.0,0.1226053]
[1723693173153,0.50467039,58536.0,58535.0,0.1226053]
[1723693173391,0.50467039,58536.0,58535.0,0.1086053]
[1723693173591,0.31674525,58536.0,58535.0,0.1086053]
[1723693173793,0.31674525,58536.0,58535.0,0.1166053]
[1723693173995,0.31674525,58536.0,58535.0,0.1026053]
[1723693174195,0.50467039,58536.0,58535.0,0.1026053]
[1723693174396,0.55588358,58536.0,58535.0,0.1026053]
[1723693174658,0.55588358,58536.0,58535.0,0.0946053]
[1723693175161,0.55588358,58536.0,58535.0,0.0976053]
[1723693175898,0.55588358,58536.0,58535.0,0.0099053]
[1723693175899,1.86065304,58536.0,58535.0,0.0099053]
[1723693176080,1.9887627,58536.0,58535.0,0.0099053]
[1723693176228,1.86065304,58536.0,58535.0,0.0069053]
[1723693176427,1.74941053,58536.0,58535.0,0.0069053]
[1723693176640,1.74941053,58536.0,58535.0,0.0029053]
[1723693177071,1.74941053,58536.0,58535.0,0.0009053]
[1723693177241,1.86065304,58536.0,58535.0,0.0009053]
[1723693177444,1.98852343,58536.0,58535.0,0.0009053]
[1723693177647,2.16007797,58536.0,58535.0,0.0009053]
[1723693178429,2.03220758,58536.0,58535.0,0.0009053]
[1723693178634,2.20376212,58536.0,58535.0,0.0009053]
[1723693178867,2.44293112,58536.0,58535.0,0.0009053]
[1723693179048,2.20077076,58536.0,58535.0,0.0009053]
[1723693179401,2.32853459,58536.0,58535.0,0.0009053]
[1723693179603,1.98542551,58536.0,58535.0,0.0009053]
[1723693179808,1.80173101,58536.0,58535.0,0.0009053]
[1723693180298,1.79973101,58536.0,58535.0,0.0009053]
[1723693180479,1.80473101,58536.0,58535.0,0.0019053]
[1723693180663,1.80173101,58536.0,58535.0,0.0019053]
[1723693181069,1.80673101,58536.0,58535.0,0.0029053]
[1723693181470,1.73007075,58536.0,58535.0,0.0029053]
[1723693181668,1.49090175,58536.0,58535.0,0.0029053]
[1723693181872,1.24973275,58536.0,58535.0,0.0019053]
[1723693182180,1.49090175,58536.0,58535.0,0.0029053]
[1723693184158,1.49387789,58536.0,58535.0,0.0029053]
[1723693185117,1.25470889,58536.0,58535.0,0.0029053]
[1723693186661,1.10940889,58536.0,58535.0,0.0029053]
[1723693186861,0.87023989,58536.0,58535.0,0.0029053]
[1723693188089,1.10940889,58536.0,58535.0,0.0029053]
[1723693189267,0.87023989,58536.0,58535.0,0.0029053]
[1723693189431,0.75065589,58536.0,58535.0,0.0029053]
[1723693189855,0.75065589,58536.0,58535.0,0.0779053]
[1723693190233,0.87023989,58536.0,58535.0,0.0029053]
[1723693190732,0.87023989,58536.0,58535.0,0.03211566]
[1723693192235,0.75065589,58536.0,58535.0,0.03211566]
[1723693192444,0.87023989,58536.0,58535.0,0.03211566]
[1723693193692,0.01059353,58536.0,58535.0,0.21240166]
[1723693193889,0.01059353,58536.0,58535.0,0.45157466]
[1723693194684,0.01059353,58536.0,58535.0,0.9436022]
[1723693195096,0.00859353,58536.0,58535.0,0.9426022]
[1723693195295,0.00761739,58536.0,58535.0,0.9436022]
[1723693195955,0.00561739,58536.0,58535.0,0.9426022]
[1723693196176,0.00561739,58536.0,58535.0,0.9516022]
[1723693196587,0.00061739,58536.0,58535.0,0.9506022]
[1723693196995,0.00461739,58536.0,58535.0,0.9506022]
[1723693197368,0.00461739,58536.0,58535.0,0.9516022]
[1723693197570,0.00461739,58536.0,58535.0,0.9616022]
[1723693200073,0.00461739,58536.0,58535.0,1.2007752]
[1723693200498,0.00461739,58536.0,58535.0,1.1907752]
[1723693200906,0.00461739,58536.0,58535.0,1.1997752]
[1723693201265,0.00461739,58536.0,58535.0,1.1907752]
[1723693201657,0.00461739,58536.0,58535.0,1.2017752]
[1723693201903,0.00461739,58536.0,58535.0,1.2954752]
[1723693218171,0.00435896,58536.0,58535.0,1.2954752]
[1723693221718,0.00435896,58536.0,58535.0,1.1534752]
[1723693221903,0.00435896,58536.0,58535.0,0.9143022]
[1723693225347,0.00435896,58536.0,58535.0,1.2888752]
[1723693232723,0.00415335,58536.0,58535.0,1.2888752]
[1723693233181,0.00415335,58536.0,58535.0,0.8206022]
[1723693233383,0.14365335,58536.0,58535.0,0.9143022]
[1723693234216,0.00415335,58536.0,58535.0,0.9143022]
[1723693237729,0.00415335,58536.0,58535.0,0.9958022]
[1723693240959,0.00415335,58536.0,58535.0,1.0574022]
[1723693242322,0.00415335,58536.0,58535.0,1.2965752]
[1723693250384,0.00415335,58536.0,58535.0,1.47387689]
[1723693251043,0.00415335,58536.0,58535.0,1.47387618]
[1723693251879,0.00415335,58536.0,58535.0,1.2965752]
[1723693252028,0.00415335,58536.0,58535.0,1.47387619]
[1723693255450,0.00415335,58536.0,58535.0,1.2965752]
[1723693255655,0.00415335,58536.0,58535.0,1.47387618]
[1723693259187,0.00415335,58536.0,58535.0,1.2965752]
[1723693260762,0.00415335,58536.0,58535.0,1.47387621]
[1723693261878,0.00415335,58536.0,58535.0,1.2965752]
[1723693268370,0.00415335,58536.0,58535.0,1.2349752]
[1723693268575,0.00415335,58536.0,58535.0,1.1534752]
[1723693268777,0.00415335,58536.0,58535.0,0.9143022]
[1723693272730,0.08415335,58536.0,58535.0,0.2226702]
[1723693272911,0.74837535,58536.0,58535.0,0.0219053]
[1723693273326,0.98754435,58536.0,58535.0,0.0219053]
[1723693273538,1.14712373,58536.0,58535.0,0.0219053]
[1723693273758,1.37251359,58536.0,58535.0,0.0109053]
[1723693273995,1.2186775,58536.0,58535.0,0.0109053]
[1723693274191,1.47228342,58536.0,58535.0,0.0109053]
[1723693274418,1.64383796,58536.0,58535.0,0.0109053]
[1723693274661,1.88300696,58536.0,58535.0,0.0109053]
[1723693274794,1.87900696,58536.0,58535.0,0.0009053]
[1723693275221,1.87900696,58536.0,58535.0,0.0049053]
[1723693275652,1.77888224,58536.0,58535.0,0.0049053]
[1723693275868,1.77888224,58536.0,58535.0,0.0059053]
[1723693276291,1.78488224,58536.0,58535.0,0.0069053]
[1723693276501,1.62540104,58536.0,58535.0,0.0009053]
[1723693276718,1.62940104,58536.0,58535.0,0.0019053]
[1723693276936,1.63540104,58536.0,58535.0,0.0029053]
[1723693277322,1.63140104,58536.0,58535.0,0.0019053]
[1723693277541,1.55984727,58536.0,58535.0,0.0019053]
[1723693277765,1.56384727,58536.0,58535.0,0.0029053]
[1723693278525,1.15312373,58536.0,58535.0,0.0029053]
[1723693278732,1.14712373,58536.0,58535.0,0.0019053]
[1723693278957,1.24534466,58536.0,58535.0,0.0009053]
[1723693279172,1.27689771,58536.0,58535.0,0.0019053]
[1723693279344,1.14712373,58536.0,58535.0,0.0019053]
[1723693279788,1.29659413,58536.0,58535.0,0.0029053]
[1723693281696,1.16885721,58536.0,58535.0,0.0029053]
[1723693281876,1.27100286,58536.0,58535.0,0.0029053]
[1723693282434,1.4121688,58536.0,58535.0,0.0029053]
[1723693283216,2.51074669,58536.0,58535.0,0.0029053]
[1723693283428,2.83113709,58536.0,58535.0,0.0029053]
[1723693283630,3.09858399,58536.0,58535.0,0.00039611]
[1723693283842,1.325451,58535.0,58534.0,0.0009053]
[1723693284046,0.438021,58525.0,58524.0,0.0009053]
[1723693284293,1.87800354,58525.0,58524.0,0.0009053]
[1723693284528,2.19374192,58525.0,58524.0,0.0009053]
[1723693284730,2.28650095,58525.0,58524.0,0.0009053]
[1723693284933,2.47979259,58525.0,58524.0,0.0009053]
[1723693285139,2.63772685,58525.0,58524.0,0.0009053]
[1723693285573,2.51013521,58525.0,58524.0,0.0009053]
[1723693286396,2.51913521,58525.0,58524.0,0.0019053]
[1723693286600,2.52613521,58525.0,58524.0,0.0029053]
[1723693287276,2.35982848,58525.0,58524.0,0.0029053]
[1723693287489,2.43626897,58525.0,58524.0,0.0029053]
[1723693287693,2.35982848,58525.0,58524.0,0.0029053]
[1723693288112,1.56982848,58525.0,58524.0,0.0029053]
[1723693288489,1.62076966,58525.0,58524.0,0.0029053]
[1723693288708,1.56982848,58525.0,58524.0,0.0029053]
[1723693288832,2.30989084,58525.0,58524.0,0.0029053]
[1723693289046,2.15195658,58525.0,58524.0,0.0029053]
[1723693290932,2.16201202,58525.0,58524.0,0.0029053]
[1723693294238,1.75124348,58525.0,58524.0,0.0029053]
[1723693295683,2.51124348,58525.0,58524.0,0.0029053]
[1723693296438,2.92201202,58525.0,58524.0,0.0029053]
[1723693297530,3.09356656,58525.0,58524.0,0.0029053]
[1723693297936,2.92201202,58525.0,58524.0,0.0029053]
[1723693302251,2.94501202,58525.0,58524.0,0.0029053]
[1723693305628,2.60555748,58525.0,58524.0,0.0029053]
[1723693305835,1.84555748,58525.0,58524.0,0.0029053]
[1723693306539,1.11786004,58525.0,58524.0,0.0966053]
[1723693306745,1.11786004,58525.0,58524.0,0.19635689]
[1723693306992,1.35707404,58525.0,58524.0,0.2331053]
[1723693307196,1.11786004,58525.0,58524.0,0.2331053]
[1723693309343,0.75903904,58525.0,58524.0,0.2331053]
[1723693309891,0.87864604,58525.0,58524.0,0.2331053]
[1723693310367,0.75903904,58525.0,58524.0,0.25659689]
[1723693311352,0.75903904,58525.0,58524.0,0.2331053]
[1723693311592,0.87864604,58525.0,58524.0,0.2331053]
[1723693311734,0.75903904,58525.0,58524.0,0.2331053]
[1723693312695,0.87864604,58525.0,58524.0,0.2331053]
[1723693313110,0.75903904,58525.0,58524.0,0.2331053]
[1723693314590,0.75003904,58525.0,58524.0,0.2321053]
[1723693314996,0.75203904,58525.0,58524.0,0.2321053]
[1723693315198,0.74503904,58525.0,58524.0,0.2311053]
[1723693315598,0.74603904,58525.0,58524.0,0.2311053]
[1723693322313,0.00597668,58525.0,58524.0,0.55752173]
[1723693322519,0.00597668,58525.0,58524.0,1.03595773]
[1723693322923,0.00597668,58525.0,58524.0,1.27517573]
[1723693323525,0.003,58525.0,58524.0,1.27517573]
[1723693323656,0.003,58525.0,58524.0,1.38537971]
[1723693324641,0.001,58525.0,58524.0,1.38537971]
[1723693324890,0.001,58525.0,58524.0,1.13595773]
[1723693325092,0.002,58525.0,58524.0,1.14495773]
[1723693325477,0.001,58525.0,58524.0,1.14495773]
[1723693325806,0.002,58525.0,58524.0,1.15095773]
[1723693326011,0.002,58525.0,58524.0,1.29155773]
[1723693326139,0.001,58525.0,58524.0,1.52477573]
[1723693326568,0.002,58525.0,58524.0,1.29655773]
[1723693327346,0.002,58525.0,58524.0,1.53577573]
[1723693327579,0.002,58525.0,58524.0,1.29655773]
[1723693328549,0.002,58525.0,58524.0,1.05733973]
[1723693328753,0.002,58525.0,58524.0,0.95733973]
[1723693329606,0.002,58525.0,58524.0,1.19655773]
[1723693332895,0.002,58525.0,58524.0,0.71812173]
[1723693333905,0.002,58525.0,58524.0,0.1574053]
[1723693334111,0.121607,58525.0,58524.0,0.0209053]
[1723693337727,0.360821,58525.0,58524.0,0.0209053]
[1723693337924,0.121607,58525.0,58524.0,0.0209053]
[1723693338683,0.002,58525.0,58524.0,0.0209053]
[1723693339252,0.002,58525.0,58524.0,0.96123963]
[1723693342768,0.002,58525.0,58524.0,0.72202163]
[1723693343333,0.002,58525.0,58524.0,0.65552163]
[1723693343743,0.00497542,58525.0,58524.0,0.65552163]
[1723693344117,0.00497542,58525.0,58524.0,0.13005809]
[1723693344347,1.34307278,58525.0,58524.0,0.0209053]
[1723693344555,1.42457278,58525.0,58524.0,0.0209053]
[1723693344798,1.66378678,58525.0,58524.0,0.0209053]
[1723693345423,1.73943446,58525.0,58524.0,0.0119053]
[1723693345674,1.73943446,58525.0,58524.0,0.0049053]
[1723693345675,1.74874004,58525.0,58524.0,0.0049053]
[1723693345915,1.74874004,58525.0,58524.0,0.0009053]
[1723693345916,1.96167984,58525.0,58524.0,0.0009053]
[1723693346189,1.7487844,58525.0,58524.0,0.0059053]
[1723693346470,1.74878422,58525.0,58524.0,0.0099053]
[1723693346677,1.49927734,58525.0,58524.0,0.0049053]